bitfinex/quotes_ETHUSD_20250726
["timestamp","ask_amount","ask_price","bid_price","bid_amount"]
[1753554497105,2.557,3735.9,3735.7,0.1336]
[1753554497261,2.557,3735.8,3735.7,0.6301]
[1753554497891,2.557,3735.8,3735.7,1.1016]
[1753554498618,2.557,3735.8,3735.2,0.4965]
[1753554498619,23.763635,3735.8,3735.2,0.4965]
[1753554498817,20.950935,3735.7,3735.3,0.1336]
[1753554499186,20.950935,3735.7,3735.3,0.6301]
[1753554499606,20.950935,3735.7,3735.3,1.1016]
[1753554499798,20.950935,3735.7,3735.4,0.4965]
[1753554500613,20.950935,3735.7,3735.3,0.1336]
[1753554500978,20.950935,3735.5,3735.1,0.1336]
[1753554501220,2.556,3735.4,3735.1,0.1336]
[1753554501425,0.02020977,3735.3,3734.8,0.001]
[1753554501602,3.06680977,3735.4,3734.9,0.1336]
[1753554501795,5.74390586,3735.4,3734.9,0.1336]
[1753554502014,3.0,3735.1,3734.8,0.001]
[1753554502351,2.57520977,3735.0,3734.8,0.001]
[1753554502481,2.555,3735.0,3734.8,0.001]
[1753554502681,2.912,3735.0,3734.8,0.001]
[1753554502916,20.97114477,3734.9,3734.8,0.001]
[1753554503118,4.16399542,3734.9,3734.8,0.001]
[1753554503449,5.555,3734.9,3734.8,0.969]
[1753554504434,3.0,3734.9,3734.8,0.969]
[1753554504592,5.555,3734.9,3734.8,0.969]
[1753554504792,5.555,3734.9,3734.8,0.4975]
[1753554505840,5.555,3734.9,3734.8,0.001]
[1753554506292,27.418435,3734.9,3734.8,0.001]
[1753554506488,30.22948285,3734.9,3734.8,0.001]
[1753554506690,30.77948285,3734.9,3734.8,0.001]
[1753554506886,31.09898285,3734.9,3734.8,0.001]
[1753554508805,30.42248285,3734.9,3734.8,0.001]
[1753554509509,30.77948285,3734.9,3734.8,0.001]
[1753554509828,21.441535,3734.9,3734.8,2.67851954]
[1753554510141,20.950935,3736.2,3735.3,2.67710529]
[1753554510429,2.57420977,3736.1,3735.6,2.6769379]
[1753554510633,3.0,3735.9,3735.6,2.6769379]
[1753554510933,5.57420977,3735.8,3735.7,0.968]
[1753554511106,5.554,3735.8,3735.7,0.968]
[1753554511304,2.554,3735.8,3735.7,0.968]
[1753554513847,3.0,3735.9,3735.7,0.968]
[1753554513992,5.554,3735.8,3735.6,2.67694286]
[1753554514729,3.0,3735.8,3735.7,0.968]
[1753554515022,5.554,3735.8,3735.7,0.968]
[1753554519103,20.950935,3735.7,3735.0,1.2716]
[1753554519300,2.57320977,3735.6,3735.1,0.4965]
[1753554519502,2.57320977,3735.6,3735.0,0.7751]
[1753554519722,2.57320977,3735.6,3735.2,0.968]
[1753554519920,2.57320977,3735.6,3735.3,0.6301]
[1753554520122,0.3611858,3735.5,3734.8,1.268]
[1753554520433,2.553,3735.4,3734.9,1.1016]
[1753554520628,2.553,3735.4,3735.0,0.968]
[1753554520835,2.553,3735.4,3735.0,0.4715]
[1753554521034,2.553,3735.4,3735.1,0.4965]
[1753554521842,2.553,3735.4,3735.1,0.4715]
[1753554522017,2.553,3735.4,3735.2,0.968]
[1753554522213,2.553,3735.4,3735.2,0.9578]
[1753554522417,2.553,3735.4,3735.2,0.4863]
[1753554525140,3.08935669,3735.4,3735.2,0.4863]
[1753554527407,20.950935,3735.2,3734.8,0.001]
[1753554527716,5.6856,3735.1,3734.8,0.001]
[1753554527915,5.6856,3735.1,3734.9,0.9579]
[1753554528115,5.6856,3735.1,3734.9,0.4716]
[1753554528442,0.1336,3735.1,3735.0,0.4863]
[1753554528646,2.552,3735.1,3735.0,0.9579]
[1753554529418,5.552,3735.1,3735.0,0.9579]
[1753554532160,5.552,3735.1,3735.0,0.4716]
[1753554532320,5.552,3735.1,3735.0,0.9579]
[1753554535732,5.51652486,3735.1,3735.0,0.4863]
[1753554536140,5.51652486,3735.1,3734.9,0.1336]
[1753554536346,2.551,3735.0,3734.9,0.1336]
[1753554536557,2.551,3735.0,3734.9,0.6052]
[1753554536755,2.551,3735.0,3734.9,0.1336]
[1753554536955,2.57120977,3735.0,3734.9,0.1336]
[1753554537637,2.57120977,3735.0,3734.9,0.6199]
[1753554537835,2.57120977,3735.0,3734.8,0.001]
[1753554537836,0.55,3734.9,3734.8,0.001]
[1753554538036,6.36104785,3734.9,3734.8,0.001]
[1753554539752,27.66898285,3734.9,3734.8,0.001]
[1753554539948,27.98848285,3734.9,3734.8,0.001]
[1753554540146,28.06447455,3734.9,3734.8,0.001]
[1753554540349,6.75653955,3734.9,3734.8,0.001]
[1753554542184,27.70747455,3734.9,3734.8,0.001]
[1753554542960,6.75653955,3734.9,3734.8,0.001]
[1753554544547,3.1336,3734.9,3734.8,0.001]
[1753554544783,3.0,3734.9,3734.8,0.9589]
[1753554544952,5.55,3734.9,3734.8,0.9589]
[1753554547975,2.55,3734.9,3734.8,0.9589]
[1753554549058,3.1336,3735.3,3734.8,0.9589]
[1753554549276,3.0,3735.1,3734.9,0.9579]
[1753554549587,2.549,3735.0,3734.8,0.001]
[1753554550172,2.549,3735.0,3734.9,0.9579]
[1753554550660,3.1336,3735.3,3734.9,0.9579]
[1753554550858,3.1336,3735.3,3735.0,0.9579]
[1753554551062,3.0,3735.1,3735.0,0.4716]
[1753554551387,3.1336,3735.3,3735.0,0.4716]
[1753554551590,3.0,3735.1,3735.0,0.4716]
[1753554552282,3.0,3735.1,3735.0,0.918]
[1753554553286,2.549,3735.1,3735.0,0.918]
[1753554556109,5.549,3735.1,3735.0,0.918]
[1753554563522,3.0,3735.1,3735.0,0.918]
[1753554563728,5.547,3735.1,3735.0,0.918]
[1753554564429,2.547,3735.1,3735.0,3.59537617]
[1753554564927,2.547,3735.1,3735.0,0.918]
[1753554565824,2.547,3735.1,3735.0,3.59537617]
[1753554566021,2.547,3735.1,3735.0,0.918]
[1753554567820,2.547,3735.1,3735.0,3.59537617]
[1753554568207,2.547,3735.1,3735.0,0.918]
[1753554572889,2.547,3735.1,3735.0,0.4795]
[1753554573107,2.549,3735.1,3735.0,0.001]
[1753554575934,2.549,3735.1,3735.0,0.919]
[1753554577132,0.002,3735.1,3735.0,3.15687617]
[1753554577318,2.546,3735.1,3735.0,4.7032014]
[1753554577544,0.002,3735.1,3735.0,4.7032014]
[1753554586666,0.002,3735.1,3735.0,4.72997516]
[1753554592033,0.002,3735.1,3735.0,4.9345343]
[1753554593531,1e-08,3735.1,3735.0,4.9345343]
[1753554595868,1e-08,3735.1,3735.0,7.4745343]
[1753554596073,1e-08,3735.1,3735.0,7.44776054]
[1753554598543,1e-08,3735.1,3735.0,7.46746054]
[1753554601442,1e-08,3735.4,3735.3,3.46646113]
[1753554601643,1e-08,3735.4,3735.3,7.68439405]
[1753554601953,1e-08,3735.4,3735.3,8.70182244]
[1753554604772,1e-08,3735.4,3735.3,11.70182244]
[1753554608052,1e-08,3735.9,3735.8,7.18034316]
[1753554608248,1e-08,3735.9,3735.8,10.56897748]
[1753554608683,1e-08,3735.9,3735.8,11.47957748]
[1753554614555,1e-08,3735.9,3735.8,11.47757748]
[1753554615865,1e-08,3735.9,3735.8,11.98567748]
[1753554617350,1e-08,3735.9,3735.8,14.98567748]
[1753554617580,1e-08,3736.2,3736.1,3.47538788]
[1753554617768,1e-08,3736.2,3736.1,8.07226817]
[1753554617964,1e-08,3736.2,3736.1,9.0818023]
[1753554618171,1e-08,3736.4,3736.3,2.67644461]
[1753554618378,1e-08,3736.4,3736.3,12.88654939]
[1753554618584,1e-08,3736.4,3736.3,13.31108495]
[1753554618766,1e-08,3736.4,3736.3,8.45626334]
[1753554619100,1e-08,3736.4,3736.3,10.99026334]
[1753554619396,1e-08,3736.4,3736.3,11.89296334]
[1753554619881,1e-08,3736.4,3736.3,10.99026334]
[1753554620078,1e-08,3736.4,3736.3,11.44156334]
[1753554620283,1e-08,3736.4,3736.3,11.89296334]
[1753554620995,1e-08,3736.5,3736.4,5.67637297]
[1753554621196,1e-08,3736.5,3736.4,7.33683953]
[1753554621402,1e-08,3736.5,3736.4,8.23953953]
[1753554623018,1e-08,3736.5,3736.4,7.33683953]
[1753554624603,1e-08,3736.5,3736.4,7.78813953]
[1753554625002,1e-08,3736.5,3736.4,10.77253953]
[1753554626315,0.002,3736.7,3736.6,2.67622972]
[1753554626483,0.002,3736.7,3736.6,6.90968567]
[1753554626690,0.002,3736.7,3736.6,7.78562338]
[1753554627893,0.002,3736.7,3736.6,7.33422338]
[1753554628096,0.002,3736.7,3736.6,6.88292338]
[1753554628498,0.002,3736.7,3736.6,4.34992338]
[1753554628718,0.002,3736.7,3736.6,6.90868567]
[1753554628950,0.002,3736.7,3736.6,6.88192338]
[1753554629722,0.002,3736.7,3736.6,7.33322338]
[1753554630221,0.002,3736.7,3736.6,4.80122338]
[1753554630430,0.002,3736.7,3736.6,6.90868567]
[1753554630593,0.002,3736.7,3736.6,6.88192338]
[1753554631123,0.002,3736.7,3736.6,4.34992338]
[1753554631325,0.002,3736.7,3736.6,6.90768567]
[1753554631524,0.002,3736.7,3736.6,6.88092338]
[1753554631925,0.002,3736.7,3736.6,4.80122338]
[1753554632221,0.002,3736.7,3736.6,6.90768567]
[1753554632425,0.002,3736.7,3736.6,4.34992338]
[1753554632626,0.359,3736.7,3736.6,5.34082972]
[1753554632998,0.002,3736.7,3736.6,2.80982972]
[1753554633326,0.359,3736.7,3736.6,2.80982972]
[1753554633699,0.002,3736.7,3736.6,2.80982972]
[1753554634099,0.002,3736.7,3736.6,5.34082972]
[1753554635533,0.002,3736.7,3736.6,7.04524283]
[1753554639936,0.002,3736.7,3736.6,7.85074283]
[1753554642042,0.3195,3737.6,3736.6,7.85074283]
[1753554642043,0.2495,3740.3,3737.4,2.67565687]
[1753554642240,0.3195,3738.5,3737.8,2.80897053]
[1753554642403,0.002,3738.2,3737.8,2.80897053]
[1753554643435,0.6785,3737.9,3737.8,2.80897053]
[1753554645227,0.002,3737.9,3737.8,2.80897053]
[1753554645941,0.002,3737.9,3737.8,3.70807053]
[1753554646132,0.002,3737.9,3737.8,4.3929753]
[1753554646508,0.002,3737.9,3737.8,5.2206753]
[1753554647318,1e-08,3737.9,3737.8,7.7486753]
[1753554647518,1e-08,3737.9,3737.8,7.7219216]
[1753554652953,1e-08,3737.9,3737.8,5.9951216]
[1753554653154,1e-08,3737.9,3737.8,3.4671216]
[1753554653458,1e-08,3737.9,3737.8,6.4756753]
[1753554653628,1e-08,3737.9,3737.8,6.4489216]
[1753554654157,1e-08,3737.9,3737.8,6.8922216]
[1753554655659,1e-08,3737.9,3737.8,5.9931216]
[1753554656537,1e-08,3737.9,3737.8,6.4489216]
[1753554657939,1e-08,3737.9,3737.8,6.8922216]
[1753554660743,1e-08,3737.9,3737.8,5.9931216]
[1753554661071,1e-08,3737.9,3737.8,7.6845216]
[1753554662272,1e-08,3737.9,3737.8,10.6845216]
[1753554662685,1e-08,3738.2,3738.1,2.67515582]
[1753554662864,1e-08,3738.2,3738.1,7.54246981]
[1753554663042,1e-08,3738.2,3738.1,7.51571826]
[1753554663244,1e-08,3738.2,3738.1,8.54841826]
[1753554663444,1e-08,3738.2,3738.1,15.2653586]
[1753554664873,1e-08,3738.2,3738.1,11.54841826]
[1753554667865,1e-08,3738.2,3738.1,8.12531826]
[1753554668067,1e-08,3738.2,3738.1,4.33301826]
[1753554668290,0.35700001,3738.2,3738.1,5.33175582]
[1753554668793,0.35700001,3738.2,3738.1,5.35850737]
[1753554668959,0.35700001,3738.2,3738.1,5.33175582]
[1753554669381,1e-08,3738.2,3738.1,2.80875582]
[1753554669582,0.67650001,3738.2,3738.1,0.1336]
[1753554670358,1.01366217,3738.2,3738.1,0.1336]
[1753554670887,0.67650001,3738.2,3738.1,0.1336]
[1753554671951,0.67650001,3738.2,3737.7,0.1336]
[1753554671952,3.48519874,3738.2,3737.7,0.1336]
[1753554672156,3.48519874,3738.2,3736.3,2.67743947]
[1753554672157,2.67538566,3737.8,3736.3,2.67743947]
[1753554672400,2.67544211,3737.7,3737.6,0.1336]
[1753554672560,2.67544211,3737.7,3736.4,0.02676372]
[1753554672561,2.67558958,3737.5,3737.2,0.1336]
[1753554672766,0.57069392,3737.4,3737.2,0.1336]
[1753554672970,20.950935,3737.3,3736.9,0.1336]
[1753554673169,0.02020977,3737.2,3736.9,0.1336]
[1753554673369,0.6765,3737.2,3736.9,0.1336]
[1753554673766,3.90237166,3737.1,3736.3,0.001]
[1753554673973,3.90237166,3737.1,3736.4,0.1336]
[1753554674170,4.03597166,3737.1,3736.4,0.1336]
[1753554674601,24.98690666,3737.1,3736.3,0.1346]
[1753554678005,27.98690666,3737.1,3736.3,0.1346]
[1753554678213,27.98690666,3737.1,3736.3,0.001]
[1753554680983,7.03597166,3737.1,3736.3,0.001]
[1753554681219,24.084535,3737.1,3736.3,0.001]
[1753554681411,5.522,3737.1,3736.8,0.1336]
[1753554683016,5.522,3737.1,3736.8,2.80967712]
[1753554683916,5.522,3737.1,3736.8,0.1336]
[1753554685218,5.522,3737.1,3736.8,2.80967471]
[1753554685925,3.0,3737.1,3736.8,2.80967471]
[1753554686104,5.522,3737.1,3736.8,2.80967471]
[1753554686826,5.522,3737.1,3736.8,0.1336]
[1753554687207,5.522,3737.1,3736.5,0.4515]
[1753554687408,5.6556,3737.1,3736.6,0.1336]
[1753554687588,0.35700001,3738.2,3737.0,0.891]
[1753554687787,2.67480977,3738.1,3737.1,0.89]
[1753554688023,3.29943098,3738.0,3737.6,0.1336]
[1753554688208,0.29943098,3738.0,3737.6,0.1336]
[1753554688419,3.29943098,3738.0,3737.6,0.5851]
[1753554689604,3.0,3737.8,3737.6,0.5851]
[1753554690127,0.29943098,3738.0,3737.8,2.67532252]
[1753554690430,2.521,3737.9,3737.7,0.4515]
[1753554690614,2.521,3737.9,3737.7,3.12692667]
[1753554690810,2.521,3737.9,3737.7,0.4515]
[1753554692295,2.521,3737.8,3737.7,0.89]
[1753554693126,2.521,3737.8,3737.7,0.4515]
[1753554693940,2.52,3737.8,3737.7,3.56544211]
[1753554694225,0.1336,3738.1,3737.8,2.67536005]
[1753554694388,2.52,3738.0,3737.7,3.11393048]
[1753554694729,2.52,3738.0,3737.8,0.4515]
[1753554695107,3.00000001,3738.2,3737.9,0.4515]
[1753554695429,3.0,3738.0,3737.9,0.4515]
[1753554696296,3.0,3738.0,3737.6,0.1336]
[1753554696490,2.67537999,3737.8,3737.6,0.1336]
[1753554696728,2.54020977,3737.7,3737.6,0.1336]
[1753554698949,5.21565188,3737.7,3737.6,0.1336]
[1753554699123,2.67572893,3737.3,3737.0,0.001]
[1753554699326,2.52,3737.2,3737.0,0.1346]
[1753554699529,2.52,3737.1,3737.0,0.1346]
[1753554699738,2.52,3737.1,3737.0,0.5731]
[1753554700310,2.52,3737.1,3737.0,0.1346]
[1753554701846,5.19587166,3737.1,3737.0,0.1346]
[1753554702032,2.52,3737.1,3737.0,0.1346]
[1753554702739,2.52,3737.1,3737.0,0.5854]
[1753554704253,2.52,3737.1,3737.0,1.0559]
[1753554707652,2.52,3737.1,3737.0,0.1346]
[1753554707958,2.52,3737.1,3737.0,0.4518]
[1753554708453,2.8093313,3737.3,3737.0,0.9223]
[1753554708635,2.518,3737.1,3737.0,0.9223]
[1753554709825,1e-08,3738.2,3737.1,3.46287138]
[1753554710029,3.0,3738.0,3737.6,0.1336]
[1753554710226,0.83267621,3737.9,3737.7,0.9213]
[1753554710426,0.83267621,3737.9,3737.7,0.4705]
[1753554710736,0.83267621,3737.9,3737.8,0.4508]
[1753554714951,0.85288598,3737.9,3737.6,0.1336]
[1753554715151,2.9056598,3737.8,3737.6,0.1336]
[1753554719780,0.3876598,3737.8,3737.6,0.1336]
[1753554719945,2.517,3737.7,3737.6,0.1336]
[1753554721583,2.517,3737.7,3737.3,0.4508]
[1753554721768,0.02020977,3737.6,3737.4,0.1336]
[1753554722076,5.19245839,3737.7,3737.1,0.4508]
[1753554722288,5.32605839,3737.7,3737.2,0.5844]
[1753554722577,20.950935,3737.6,3737.2,0.6041]
[1753554722778,20.950935,3737.6,3737.3,0.4508]
[1753554722986,0.02020977,3737.5,3737.2,0.1336]
[1753554723282,2.516,3737.4,3737.2,0.1336]
[1753554723484,2.516,3737.4,3737.2,0.5844]
[1753554723786,2.516,3737.4,3737.3,0.4508]
[1753554730280,2.516,3737.4,3737.3,0.9213]
[1753554733599,2.514,3737.4,3737.3,0.9213]
[1753554733792,2.514,3737.4,3737.3,3.59701014]
[1753554736098,0.1336,3737.9,3737.4,2.67564135]
[1753554736394,2.514,3737.8,3737.5,0.8233]
[1753554736598,2.514,3737.8,3737.6,0.9254]
[1753554737077,2.514,3737.8,3737.7,0.4848]
[1753554737990,2.514,3737.8,3737.7,1.6957]
[1753554738601,0.1336,3738.1,3737.7,1.6957]
[1753554738798,2.514,3737.8,3737.7,4.37114211]
[1753554738966,2.513,3737.8,3737.7,4.37114211]
[1753554739296,1e-08,3738.2,3738.1,2.67515582]
[1753554739606,2.51300001,3738.2,3738.1,2.67515582]
[1753554739895,2.51300001,3738.2,3738.1,3.60055582]
[1753554740707,2.51300001,3738.2,3738.1,0.9254]
[1753554741079,2.51300001,3738.2,3738.1,3.60055582]
[1753554741503,1e-08,3738.2,3738.1,3.60055582]
[1753554741704,2.51300001,3738.2,3738.1,4.37085582]
[1753554742997,1e-08,3738.2,3738.1,4.37085582]
[1753554743199,1e-08,3738.2,3738.1,5.20907076]
[1753554745711,1e-08,3738.2,3738.1,5.10222231]
[1753554745877,1e-08,3738.2,3738.1,8.10222231]
[1753554746079,1e-08,3738.2,3738.1,8.07547076]
[1753554746627,0.002,3738.7,3738.1,8.07547076]
[1753554746815,1e-08,3738.7,3738.6,3.43269805]
[1753554746984,1e-08,3738.7,3738.6,3.45944603]
[1753554747508,1e-08,3738.7,3738.6,4.38484603]
[1753554749628,1e-08,3738.7,3738.6,3.45944603]
[1753554749785,1e-08,3738.7,3738.6,4.35809805]
[1753554749985,1e-08,3738.7,3738.6,5.06139699]
[1753554750502,1e-08,3738.7,3738.6,3.91749805]
[1753554750729,1e-08,3738.7,3738.6,4.35809805]
[1753554755229,1e-08,3738.7,3738.6,3.91749805]
[1753554755432,1e-08,3738.7,3738.4,2.51]
[1753554755638,1e-08,3738.7,3738.6,0.1336]
[1753554756261,1e-08,3738.7,3738.6,2.80839805]
[1753554757108,1e-08,3738.7,3738.6,0.1336]
[1753554758056,1e-08,3738.7,3738.6,2.80839805]
[1753554758506,1e-08,3738.7,3738.6,3.29319805]
[1753554759355,1e-08,3738.7,3738.6,0.6184]
[1753554760771,1e-08,3738.7,3738.6,0.1336]
[1753554761051,0.55,3738.6,3737.5,0.7701]
[1753554761215,2.67508237,3738.3,3737.4,0.4848]
[1753554761541,0.69670977,3738.2,3737.4,0.4848]
[1753554761912,0.69670977,3738.2,3737.5,2.67557809]
[1753554762627,0.6765,3738.2,3737.6,2.67550025]
[1753554763719,0.6765,3738.2,3737.5,3.16446685]
[1753554764116,0.357,3738.2,3737.6,2.67551302]
[1753554764447,0.02020977,3738.1,3737.5,3.16446969]
[1753554764750,2.67522833,3738.0,3737.3,0.4889]
[1753554765054,0.55,3737.9,3737.1,3.16475615]
[1753554765250,0.55,3737.9,3737.2,0.4889]
[1753554765425,3.22531332,3737.9,3737.2,0.4889]
[1753554765627,0.55,3737.9,3737.2,3.16469336]
[1753554765856,0.55,3737.9,3737.2,0.4889]
[1753554766152,3.22530135,3737.9,3737.2,3.16468477]
[1753554766352,1e-08,3738.7,3738.2,3.47338189]
[1753554766662,1e-08,3738.7,3738.3,3.60049643]
[1753554766955,1e-08,3738.7,3738.6,2.67479805]
[1753554767323,1e-08,3738.7,3738.6,3.60029805]
[1753554768654,1e-08,3738.7,3738.6,3.16369805]
[1753554769853,1e-08,3738.7,3738.6,3.60029805]
[1753554770861,1e-08,3738.7,3738.6,3.73389805]
[1753554772457,1e-08,3738.7,3738.6,4.37478164]
[1753554780377,1e-08,3738.7,3738.6,5.13848164]
[1753554783786,1e-08,3738.7,3738.6,3.93818164]
[1753554784087,1e-08,3738.7,3738.6,3.29729805]
[1753554785183,1e-08,3738.7,3738.6,3.73389805]
[1753554790071,1e-08,3738.7,3738.6,3.73489805]
[1753554790382,1e-08,3738.7,3738.6,3.76164603]
[1753554791088,0.22363346,3739.4,3739.2,2.67430635]
[1753554792087,0.22363346,3739.4,3739.3,2.67429732]
[1753554792298,0.552,3739.5,3739.3,2.67429732]
[1753554792799,0.8715,3739.5,3739.2,2.67436595]
[1753554792959,1.0951,3739.5,3739.2,2.67436595]
[1753554793867,0.002,3739.5,3739.4,2.67422581]
[1753554794068,3.502,3739.8,3739.5,2.67413785]
[1753554794273,3.502,3739.8,3739.6,2.6740799]
[1753554794892,3.054,3739.8,3739.6,2.67407548]
[1753554795058,0.55,3739.8,3739.6,2.67407548]
[1753554795258,3.054,3739.8,3739.6,2.67407548]
[1753554795869,2.92309333,3740.3,3739.8,2.67393978]
[1753554795870,0.2495,3740.3,3739.8,2.67393978]
[1753554796070,4.99517578,3742.9,3740.9,2.67315351]
[1753554796071,0.1336,3741.5,3740.9,2.67315351]
[1753554796395,0.1336,3741.8,3740.9,3.60395351]
[1753554796607,0.1336,3741.9,3740.9,3.76428504]
[1753554797107,0.15380977,3741.9,3740.9,3.26595351]
[1753554797288,0.00083513,3742.3,3740.9,4.2935676]
[1753554797289,3.0471,3742.0,3740.9,4.2935676]
[1753554797610,0.1336,3742.0,3740.9,4.2935676]
[1753554797758,3.0471,3742.1,3740.9,4.32029913]
[1753554798104,0.00083513,3742.3,3740.9,4.32029913]
[1753554798105,2.6376,3742.2,3740.9,5.0822676]
[1753554798465,0.1336,3742.2,3740.9,7.5862676]
[1753554798894,0.6767,3742.2,3740.9,7.5862676]
[1753554799094,0.1336,3742.2,3740.9,7.5862676]
[1753554799295,0.5431,3742.0,3740.9,7.5862676]
[1753554799982,3.02020977,3741.9,3740.9,7.5862676]
[1753554800188,3.2155113,3742.0,3740.9,0.1336]
[1753554800189,0.02020977,3741.8,3740.9,0.1336]
[1753554800379,0.2236,3741.3,3740.9,0.1336]
[1753554800710,6.12582954,3741.5,3740.9,0.1336]
[1753554800913,6.34942954,3741.5,3740.9,0.1336]
[1753554801077,0.6767,3741.5,3740.9,0.1336]
[1753554801897,0.3195,3741.2,3740.9,0.1336]
[1753554802200,0.3195,3741.2,3740.3,2.67358194]
[1753554802201,0.64808389,3741.0,3740.6,0.1336]
[1753554802513,0.10498389,3741.0,3740.6,0.1336]
[1753554802663,0.10498389,3741.0,3740.6,0.5928]
[1753554803580,0.10498389,3741.0,3740.6,2.8069633]
[1753554803782,0.10498389,3741.0,3740.6,3.2661633]
[1753554804515,0.10498389,3741.0,3740.6,0.5928]
[1753554805098,3.0,3740.9,3740.6,0.1336]
[1753554805478,3.5431,3740.9,3740.6,0.1336]
[1753554806166,3.2236,3740.9,3740.6,0.1336]
[1753554806412,3.0,3740.9,3740.6,0.1336]
[1753554807674,2.67329644,3740.7,3740.3,0.1336]
[1753554808004,2.52220977,3740.6,3740.3,0.1336]
[1753554808171,2.52220977,3740.6,3739.7,0.4592]
[1753554808172,0.55,3740.5,3739.7,0.4592]
[1753554808370,3.22347591,3740.5,3740.1,0.1336]
[1753554808616,3.22347591,3740.5,3739.5,3.14575194]
[1753554808617,2.67366124,3740.2,3739.5,3.14575194]
[1753554808770,0.55,3740.3,3739.8,0.1336]
[1753554808771,0.55,3740.1,3739.8,0.1336]
[1753554808973,1.2267,3740.1,3739.6,0.1336]
[1753554809213,0.02020977,3740.0,3739.2,2.67436715]
[1753554809412,0.02020977,3740.0,3738.8,0.8127]
[1753554809413,0.1336,3741.2,3739.9,0.9463]
[1753554809721,0.1336,3741.2,3740.6,2.67336306]
[1753554809940,3.1336,3741.2,3740.7,3.60406963]
[1753554810306,3.1336,3741.2,3740.8,0.4592]
[1753554810542,0.1336,3741.2,3740.8,0.4592]
[1753554810725,3.10498389,3741.0,3740.8,0.4592]
[1753554811541,0.10498389,3741.0,3740.8,0.4592]
[1753554811843,2.60698389,3741.0,3740.8,0.4592]
[1753554812594,3.0,3740.9,3740.8,0.4592]
[1753554814127,2.502,3740.9,3740.8,0.4592]
[1753554815268,5.502,3740.9,3740.8,0.9308]
[1753554815638,5.502,3740.9,3740.8,0.4592]
[1753554816333,3.0,3740.9,3740.8,0.4592]
[1753554816533,2.502,3740.9,3740.8,0.4592]
[1753554816863,2.502,3740.9,3740.8,1.0644]
[1753554817832,0.10698389,3741.0,3740.9,2.67315351]
[1753554818099,0.10698389,3741.0,3740.9,3.31423649]
[1753554818100,2.60898389,3741.0,3740.9,3.31423649]
[1753554818253,2.60898389,3741.0,3740.9,3.60395351]
[1753554820940,2.60898389,3741.0,3740.9,0.9308]
[1753554821257,2.60898389,3741.0,3740.9,0.4592]
[1753554823952,2.60898389,3741.0,3740.8,0.1336]
[1753554824267,2.60898389,3741.0,3740.8,2.80676955]
[1753554824466,2.60898389,3741.0,3740.8,0.1336]
[1753554824857,2.60898389,3741.0,3740.6,2.67335644]
[1753554825062,2.60898389,3741.0,3740.7,0.1336]
[1753554826854,2.60898389,3741.0,3740.4,3.12028678]
[1753554827054,2.60898389,3741.0,3740.6,0.1336]
[1753554827556,2.60898389,3741.0,3740.6,0.5846]
[1753554829271,2.60898389,3741.0,3740.7,0.451]
[1753554830284,3.17290402,3741.0,3740.6,0.1336]
[1753554830586,3.0,3740.5,3739.6,0.7617]
[1753554830884,2.501,3740.4,3739.8,0.451]
[1753554831085,2.67358233,3740.3,3739.8,0.451]
[1753554831251,2.67358233,3740.3,3739.9,0.4468]
[1753554831453,2.67358233,3740.3,3740.0,0.8978]
[1753554831655,2.67358233,3740.3,3740.0,0.4468]
[1753554831953,2.67358233,3740.3,3740.1,0.451]
[1753554832481,2.67276862,3741.5,3740.2,0.451]
[1753554832797,3.0,3740.8,3740.1,0.451]
[1753554832989,3.0,3740.4,3740.1,0.451]
[1753554833148,2.501,3740.3,3740.1,0.451]
[1753554834164,2.501,3740.3,3740.2,0.451]
[1753554835469,2.501,3740.7,3740.5,2.67343284]
[1753554835683,2.501,3740.7,3740.6,2.6733679]
[1753554836004,2.501,3740.7,3740.6,3.5711679]
[1753554838181,0.10698389,3741.0,3740.7,2.67326289]
[1753554838386,2.501,3740.9,3740.7,2.67326289]
[1753554838595,2.501,3740.9,3740.8,0.4468]
[1753554838766,2.501,3740.9,3740.8,0.8978]
[1753554840182,0.10698389,3741.0,3740.8,0.8978]
[1753554840355,2.501,3740.9,3740.8,3.57102497]
[1753554840556,2.501,3740.9,3740.8,2.80682497]
[1753554841089,2.501,3740.9,3740.8,3.70462497]
[1753554841786,2.501,3740.9,3740.8,1.0314]
[1753554842158,0.10698389,3741.0,3740.8,1.0314]
[1753554842357,2.501,3740.9,3740.8,0.5804]
[1753554842786,2.501,3740.9,3740.8,0.1336]
[1753554842989,2.76179839,3740.9,3740.4,2.67349218]
[1753554843289,2.501,3740.9,3740.6,0.1336]
[1753554843697,2.501,3740.9,3740.6,0.5846]
[1753554843892,0.10698389,3741.0,3740.7,0.8978]
[1753554844095,2.501,3740.8,3740.7,0.8978]
[1753554845167,2.501,3740.8,3740.7,0.451]
[1753554845363,0.10698389,3741.0,3740.7,0.451]
[1753554845692,2.501,3740.8,3740.7,0.451]
[1753554845886,2.501,3740.8,3740.6,0.1336]
[1753554846094,2.501,3740.7,3740.6,0.5804]
[1753554846291,2.501,3740.7,3740.6,1.0314]
[1753554847294,2.501,3740.7,3740.6,3.7047679]
[1753554847791,2.501,3740.7,3740.6,1.0314]
[1753554848204,0.10698389,3741.0,3740.6,1.0314]
[1753554848411,2.501,3740.7,3740.6,0.1336]
[1753554848611,2.501,3740.7,3740.5,0.818]
[1753554848788,2.501,3740.7,3740.6,0.1336]
[1753554848990,2.501,3740.7,3740.6,3.2537679]
[1753554849299,2.501,3740.7,3740.6,3.7047679]
[1753554850306,0.10698389,3741.0,3740.7,2.67323675]
[1753554850607,2.5,3740.8,3740.7,3.57103675]
[1753554850998,2.5,3740.8,3740.7,3.70463675]